fUSD/lending_fUSD_20260115
["ID","MTS","AMOUNT","RATE_DAILY","PERIOD"]
[402003306,1768456259877,-500.0,0.00041095,30]
[402003307,1768456259886,-746.43,0.00041095,30]
[402003308,1768456259896,-500.0,0.00041095,30]
[402003309,1768456259906,-500.0,0.00041095,30]
[402003310,1768456259916,-500.0,0.00041095,30]
[402003311,1768456259926,-500.0,0.00041095,30]
[402003312,1768456259935,-500.0,0.00041095,30]
[402003313,1768456259945,-522.48948533,0.00041095,30]
[402003314,1768456259955,-500.0,0.00041095,30]
[402003315,1768456259967,-500.0,0.00041095,30]
[402003316,1768456260178,-500.0,0.00041095,30]
[402003317,1768456260189,-500.0,0.00041095,30]
[402003318,1768456260202,-500.0,0.00041095,30]
[402003319,1768456260212,-500.0,0.00041095,30]
[402003320,1768456260221,-500.0,0.00041095,30]
[402003321,1768456260232,-500.0,0.00041095,30]
[402003322,1768456260242,-785.24,0.00041095,30]
[402003323,1768456260252,-500.0,0.00041095,30]
[402003324,1768456260262,-500.0,0.00041095,30]
[402003325,1768456260271,-1009.98,0.00041095,30]
[402003326,1768456260281,-561.39,0.00041095,30]
[402003327,1768456260291,-1031.32,0.00041095,30]
[402003328,1768456260301,-516.20733626,0.00041095,30]
[402003329,1768456260312,-521.75139706,0.00041095,30]
[402003330,1768456260321,-500.0,0.00041095,30]
[402003331,1768456260331,-500.0,0.00041095,30]
[402003332,1768456260341,-799.81,0.00041095,30]
[402003333,1768456260351,-500.0,0.00041095,30]
[402003334,1768456260360,-500.0,0.00041095,30]
[402003335,1768456260370,-1207.94,0.00041095,30]
[402003336,1768456260379,-500.0,0.00041095,30]
[402003337,1768456260388,-500.0,0.00041095,30]
[402003338,1768456260398,-151.0,0.00041095,120]
[402003339,1768456260408,-500.0,0.00041095,30]
[402003340,1768456260417,-151.0,0.00041095,120]
[402003341,1768456260427,-151.0,0.00041095,120]
[402003342,1768456260436,-500.0,0.00041095,30]
[402003343,1768456260445,-526.47,0.00041095,30]
[402003344,1768456260455,-518.83189872,0.00041095,30]
[402003345,1768456260464,-1487.05,0.00041095,30]
[402003346,1768456260473,-505.95760838,0.00041095,30]
[402003347,1768456260482,-500.0,0.00041095,30]
[402003348,1768456260492,-500.0,0.00041095,30]
[402003349,1768456260502,-514.37176693,0.00041095,30]
[402003350,1768456260511,-226.97121041,0.00041095,30]
[402003351,1768456260521,-500.0,0.00041095,30]
[402003352,1768456260531,-500.0,0.00041095,30]
[402003353,1768456260540,-500.0,0.00041095,30]
[402003354,1768456260550,-2377.12,0.00041095,30]
[402003355,1768456260559,-500.0,0.00041095,30]
[402003356,1768456260569,-775.2,0.00041095,30]
[402003357,1768456260580,-519.92566207,0.00041095,30]
[402003358,1768456260589,-541.58583322,0.00041095,30]
[402003359,1768456260599,-521.75809795,0.00041095,30]
[402003360,1768456260609,-500.0,0.00041095,30]
[402003361,1768456260619,-500.0,0.00041095,30]
[402003362,1768456260629,-510.84,0.00041095,30]
[402003363,1768456260639,-592.22709119,0.00041095,30]
[402003364,1768456260649,-562.56477091,0.00041095,30]
[402003365,1768456260658,-500.0,0.00041095,30]
[402003366,1768456260667,-1459.33,0.00041095,30]
[402003367,1768456260677,-500.0,0.00041095,30]
[402003368,1768456260686,-914.3,0.00041095,30]
[402003369,1768456260695,-500.0,0.00041095,30]
[402003370,1768456260704,-1202.18,0.00041095,30]
[402003371,1768456260714,-500.0,0.00041095,30]
[402003372,1768456260724,-527.06192182,0.00041095,30]
[402003373,1768456260733,-500.0,0.00041095,30]
[402003374,1768456260743,-500.0,0.00041095,30]
[402003375,1768456260753,-512.8,0.00041095,30]
[402003376,1768456260762,-1209.34,0.00041095,30]
[402003377,1768456260772,-500.0,0.00041095,30]
[402003378,1768456260781,-500.0,0.00041095,30]
[402003379,1768456260791,-1506.75,0.00041095,30]
[402003380,1768456260800,-151.0,0.00041095,120]
[402003381,1768456260809,-500.0,0.00041095,30]
[402003382,1768456260818,-203.53528905,0.00041095,30]
[402003383,1768456260827,-500.0,0.00041095,30]
[402003384,1768456260837,-577.40486287,0.00041095,30]
[402003385,1768456260846,-500.0,0.00041095,30]
[402003386,1768456260855,-500.0,0.00041095,30]
[402003387,1768456260864,-664.83,0.00041095,30]
[402003388,1768456260874,-586.21935657,0.00041095,30]
[402003389,1768456260883,-500.0,0.00041095,30]
[402003390,1768456260895,-500.0,0.00041095,30]
[402003391,1768456260904,-592.49185687,0.00041095,30]
[402003392,1768456260913,-680.73,0.00041095,30]
[402003393,1768456260922,-500.0,0.00041095,30]
[402003394,1768456260931,-501.89775594,0.00041095,30]
[402003395,1768456260940,-416.37772015,0.00041095,30]
[402003396,1768456260949,-435.19001259,0.00041095,30]
[402003397,1768456260959,-596.93,0.00041095,30]
[402003398,1768456260968,-500.0,0.00041095,30]
[402003399,1768456260977,-832.77,0.00041095,30]
[402003400,1768456260986,-528.46733398,0.00041095,30]
[402003401,1768456260995,-1390.2,0.00041095,30]
[402003402,1768456261004,-500.0,0.00041095,30]
[402003403,1768456261014,-2147.72,0.00041095,30]
[402003404,1768456261023,-533.2996487,0.00041095,30]
[402003405,1768456261032,-610.89,0.00041095,30]
[402003406,1768456261042,-500.0,0.00041095,30]
[402003407,1768456261051,-500.0,0.00041095,30]
[402003408,1768456261060,-507.39780833,0.00041095,30]
[402003409,1768456261069,-500.0,0.00041095,30]
[402003410,1768456261079,-641.60505988,0.00041095,30]
[402003411,1768456261088,-500.0,0.00041095,30]
[402003412,1768456261097,-500.0,0.00041095,30]
[402003413,1768456261106,-500.0,0.00041095,30]
[402003414,1768456261115,-540.48,0.00041095,30]
[402003415,1768456261124,-500.0,0.00041095,30]
[402003416,1768456261133,-500.0,0.00041095,30]
[402003417,1768456261142,-608.64872004,0.00041095,30]
[402003418,1768456261154,-1604.52,0.00041095,30]
[402003419,1768456261164,-500.0,0.00041095,30]
[402003420,1768456261174,-500.0,0.00041095,30]
[402003421,1768456261183,-500.0,0.00041095,5]
[402003422,1768456261192,-621.99383973,0.00041095,30]
[402003423,1768456261202,-515.94330065,0.00041095,30]
[402003424,1768456261212,-620.01370357,0.00041095,30]
[402003425,1768456261221,-631.05,0.00041095,30]
[402003426,1768456261231,-500.0,0.00041095,30]
[402003427,1768456261240,-500.0,0.00041095,30]
[402003428,1768456261249,-151.0,0.00041095,120]
[402003429,1768456261258,-500.0,0.00041095,30]
[402003430,1768456261268,-500.0,0.00041095,30]
[402003431,1768456261277,-500.0,0.00041095,30]
[402003432,1768456261287,-344.10258414,0.00041095,30]
[402003433,1768456261295,-500.0,0.00041095,30]
[402003434,1768456261304,-500.0,0.00041095,30]
[402003435,1768456261313,-500.0,0.00041095,30]
[402003436,1768456261322,-563.92,0.00041095,30]
[402003437,1768456261332,-552.44777268,0.00041095,30]
[402003438,1768456261341,-531.08101367,0.00041095,30]
[402003439,1768456261350,-662.82,0.00041095,30]
[402003440,1768456261360,-1751.71,0.00041095,30]
[402003441,1768456261369,-500.0,0.00041095,30]
[402003442,1768456261379,-693.5,0.00041095,30]
[402003443,1768456261388,-1774.48,0.00041095,30]
[402003444,1768456261398,-500.0,0.00041095,30]
[402003445,1768456261408,-500.0,0.00041095,30]
[402003446,1768456261417,-500.0,0.00041095,30]
[402003447,1768456261427,-500.0,0.00041095,30]
[402003448,1768456261436,-518.07087647,0.00041095,30]
[402003449,1768456261445,-200.073358,0.00041095,120]
[402003450,1768456261454,-200.073358,0.00041095,120]
[402003451,1768456261464,-500.0,0.00041095,30]
[402003452,1768456261473,-633.49805786,0.00041095,30]
[402003453,1768456261482,-528.24190919,0.00041095,30]
[402003454,1768456261491,-500.0,0.00041095,30]
[402003455,1768456261500,-200.073358,0.00041095,120]
[402003456,1768456261509,-668.97,0.00041095,30]
[402003457,1768456261518,-500.0,0.00041095,30]
[402003458,1768456261528,-586.79,0.00041095,30]
[402003459,1768456261537,-500.0,0.00041095,30]
[402003460,1768456261547,-200.073356,0.00041095,120]
[402003461,1768456261556,-605.8243311,0.00041095,30]
[402003462,1768456261566,-500.0,0.00041095,30]
[402003463,1768456261575,-615.51603472,0.00041095,30]
[402003464,1768456261585,-1425.42,0.00041095,30]
[402003465,1768456261594,-500.0,0.00041095,30]
[402003466,1768456261603,-646.30533813,0.00041095,30]
[402003467,1768456261613,-512.81024281,0.00041095,30]
[402003468,1768456261622,-500.0,0.00041095,30]
[402003469,1768456261632,-646.69252355,0.00041095,30]
[402003470,1768456261641,-768.68,0.00041095,30]
[402003471,1768456261651,-151.0,0.00041095,120]
[402003472,1768456261660,-151.0,0.00041095,120]
[402003473,1768456261669,-610.15373625,0.00041095,30]
[402003474,1768456261678,-500.0,0.00041095,30]
[402003475,1768456261687,-500.0,0.00041095,30]
[402003476,1768456261697,-500.0,0.00041095,30]
[402003477,1768456261706,-500.0,0.00041095,30]
[402003478,1768456261716,-420.38095965,0.00041095,30]
[402003479,1768456261724,-639.5212898,0.00041095,30]
[402003480,1768456261733,-500.0,0.00041095,30]
[402003481,1768456261742,-2253.59,0.00041095,30]
[402003482,1768456261752,-632.80960394,0.00041095,30]
[402003483,1768456261761,-512.2073613,0.00041095,30]
[402003484,1768456261770,-500.0,0.00041095,30]
[402003485,1768456261780,-1332.22,0.00041095,30]
[402003486,1768456261789,-151.0,0.00041095,120]
[402003487,1768456261798,-2288.89,0.00041095,30]
[402003488,1768456261808,-151.0,0.00041095,120]
[402003489,1768456261819,-605.16,0.00041095,30]
[402003490,1768456261828,-795.95,0.00041095,30]
[402003491,1768456261838,-500.0,0.00041095,30]
[402003492,1768456261848,-599.90791795,0.00041095,30]
[402003493,1768456261861,-1059.96,0.00041095,30]
[402003494,1768456261871,-512.62615173,0.00041095,30]
[402003495,1768456261882,-500.0,0.00041095,30]
[402003496,1768456261892,-793.98,0.00041095,30]
[402003497,1768456261901,-2002.1,0.00041095,30]
[402003498,1768456261911,-2162.23,0.00041095,30]
[402003499,1768456261920,-500.0,0.00041095,30]
[402003500,1768456261930,-504.91,0.00041095,30]
[402003501,1768456261940,-500.0,0.00041095,30]
[402003502,1768456261950,-582.30582633,0.00041095,30]
[402003503,1768456261959,-500.0,0.00041095,30]
[402003504,1768456261969,-768.39,0.00041095,30]
[402003505,1768456261978,-636.66970375,0.00041095,30]
[402003506,1768456261987,-500.0,0.00041095,30]
[402003507,1768456261996,-568.849531,0.00041095,120]
[402003508,1768456262005,-697.86,0.00041095,30]
[402003509,1768456262015,-563.45,0.00041095,30]
[402003510,1768456262024,-500.0,0.00041095,30]
[402003511,1768456262033,-1132.27,0.00041095,30]
[402003512,1768456262043,-568.849531,0.00041095,120]
[402003513,1768456262052,-568.849531,0.00041095,120]
[402003514,1768456262061,-500.0,0.00041095,30]
[402003515,1768456262070,-1030.03,0.00041095,30]
[402003516,1768456262080,-2945.98,0.00041095,30]
[402003517,1768456262090,-568.849537,0.00041095,120]
[402003518,1768456262099,-500.0,0.00041095,30]
[402003519,1768456262110,-500.0,0.00041095,30]
[402003520,1768456262120,-586.52,0.00041095,30]
[402003521,1768456262130,-686.309569,0.00041095,120]
[402003522,1768456262139,-649.40634526,0.00041095,30]
[402003523,1768456262149,-153.788047,0.00041095,120]
[402003524,1768456262162,-1757.27,0.00041095,30]
[402003525,1768456262171,-151.0,0.00041095,60]
[402003526,1768456262181,-686.309569,0.00041095,120]
[402003527,1768456262191,-500.0,0.00041095,30]
[402003528,1768456262200,-230.855271,0.00041095,60]
[402003529,1768456262209,-1779.76,0.00041095,30]
[402003530,1768456262220,-686.309569,0.00041095,120]
[402003531,1768456262229,-500.0,0.00041095,30]
[402003532,1768456262239,-500.0,0.00041095,30]
[402003533,1768456262249,-686.309562,0.00041095,120]
[402003534,1768456262258,-516.79,0.00041095,30]
[402003535,1768456262268,-571.51,0.00041095,30]
[402003536,1768456262277,-500.0,0.00041095,30]
[402003537,1768456262286,-532.15336465,0.00041095,30]
[402003538,1768456262458,-500.0,0.00041095,30]
[402003539,1768456262468,-500.0,0.00041095,30]
[402003540,1768456262477,-500.0,0.00041095,30]
[402003541,1768456262488,-151.0,0.00041095,120]
[402003542,1768456262501,-500.0,0.00041095,30]
[402003543,1768456262511,-500.0,0.00041095,30]
[402003544,1768456262520,-1194.56,0.00041095,30]
[402003545,1768456262530,-151.0,0.00041095,120]
[402003546,1768456262540,-1341.32,0.00041095,30]
[402003547,1768456262550,-615.7444674,0.00041095,30]
[402003548,1768456262559,-151.0,0.00041095,120]
[402003549,1768456262570,-1513.91,0.00041095,30]
[402003550,1768456262584,-500.0,0.00041095,30]
[402003551,1768456262593,-592.79,0.00041095,30]
[402003552,1768456262602,-579.43904807,0.00041095,30]
[402003553,1768456262612,-500.0,0.00041095,30]
[402003554,1768456262623,-1086.44,0.00041095,30]
[402003555,1768456262632,-514.08584149,0.00041095,30]
[402003556,1768456262642,-500.0,0.00041095,30]
[402003557,1768456262651,-500.0,0.00041095,30]
[402003558,1768456262661,-500.0,0.00041095,30]
[402003559,1768456262671,-500.0,0.00041095,30]
[402003560,1768456262681,-1972.8,0.00041095,30]
[402003561,1768456262690,-500.0,0.00041095,30]
[402003562,1768456262700,-640.31121042,0.00041095,30]
[402003563,1768456262709,-500.0,0.00041095,30]
[402003564,1768456262718,-151.0,0.00041095,120]
[402003565,1768456262727,-2409.54,0.00041095,30]
[402003566,1768456262736,-597.40643349,0.00041095,30]
[402003567,1768456262746,-500.0,0.00041095,30]
[402003568,1768456262756,-500.0,0.00041095,30]
[402003569,1768456262765,-500.0,0.00041095,30]
[402003570,1768456262774,-1211.6,0.00041095,30]
[402003571,1768456262784,-500.0,0.00041095,30]
[402003572,1768456262793,-500.0,0.00041095,30]
[402003573,1768456262802,-958.37,0.00041095,30]
[402003574,1768456262812,-545.73,0.00041095,30]
[402003575,1768456262821,-184.43400512,0.00041095,30]
[402003576,1768456262831,-500.0,0.00041095,30]
[402003577,1768456262840,-786.37,0.00041095,30]
[402003578,1768456262849,-501.94856869,0.00041095,2]
[402003579,1768456262860,-500.0,0.00041095,30]
[402003580,1768456262870,-542.37,0.00041095,30]
[402003581,1768456262879,-664.96,0.00041095,30]
[402003582,1768456262888,-523.07,0.00041095,30]
[402003583,1768456262897,-225.52719875,0.00041095,30]
[402003584,1768456262907,-500.0,0.00041095,30]
[402003585,1768456262916,-1372.95,0.00041095,30]
[402003586,1768456262925,-500.0,0.00041095,30]
[402003587,1768456262934,-812.51,0.00041095,30]
[402003588,1768456262943,-1455.87,0.00041095,30]
[402003589,1768456262953,-941.8,0.00041095,30]
[402003590,1768456262962,-500.0,0.00041095,30]
[402003591,1768456262971,-2662.37,0.00041095,30]
[402003592,1768456262980,-615.16067439,0.00041095,30]
[402003593,1768456262989,-500.0,0.00041095,30]
[402003594,1768456262999,-973.33,0.00041095,30]
[402003595,1768456263009,-428.88068579,0.00041095,30]
[402003596,1768456263018,-500.0,0.00041095,30]
[402003597,1768456263027,-605.4140169,0.00041095,30]
[402003598,1768456263037,-500.0,0.00041095,30]
[402003599,1768456263046,-1289.05,0.00041095,30]
[402003600,1768456263056,-500.0,0.00041095,30]
[402003601,1768456263065,-685.1,0.00041095,30]
[402003602,1768456263074,-699.2,0.00041095,30]
[402003603,1768456263083,-1487.63,0.00041095,30]
[402003604,1768456263092,-500.0,0.00041095,30]
[402003605,1768456263101,-500.0,0.00041095,30]
[402003606,1768456263111,-585.76214854,0.00041095,30]
[402003607,1768456263120,-500.0,0.00041095,30]
[402003608,1768456263129,-722.63,0.00041095,30]
[402003609,1768456263139,-500.0,0.00041095,30]
[402003610,1768456263149,-500.0,0.00041095,30]
[402003611,1768456263162,-718.84,0.00041095,30]
[402003612,1768456263172,-1374.44,0.00041095,30]
[402003613,1768456263181,-631.76674587,0.00041095,30]
[402003614,1768456263191,-1333.33,0.00041095,30]
[402003615,1768456263201,-500.0,0.00041095,30]
[402003616,1768456263211,-500.0,0.00041095,30]
[402003617,1768456263220,-500.0,0.00041095,30]
[402003618,1768456263231,-880.97,0.00041095,30]
[402003619,1768456263241,-556.50989493,0.00041095,30]
[402003620,1768456263250,-500.0,0.00041095,30]
[402003621,1768456263260,-500.0,0.00041095,30]
[402003622,1768456263269,-1474.36,0.00041095,30]
[402003623,1768456263279,-500.0,0.00041095,30]
[402003624,1768456263288,-1370.45,0.00041095,30]
[402003625,1768456263298,-500.0,0.00041095,30]
[402003626,1768456263307,-500.0,0.00041095,30]
[402003627,1768456263319,-500.0,0.00041095,30]
[402003628,1768456263328,-525.08,0.00041095,30]
[402003629,1768456263338,-500.0,0.00041095,30]
[402003630,1768456263347,-532.31,0.00041095,30]
[402003631,1768456263357,-1652.78,0.00041095,30]
[402003632,1768456263366,-500.0,0.00041095,30]
[402003633,1768456263375,-500.0,0.00041095,30]
[402003634,1768456263384,-500.0,0.00041095,30]
[402003635,1768456263393,-500.0,0.00041095,30]
[402003636,1768456263403,-500.0,0.00041095,30]
[402003637,1768456263412,-500.0,0.00041095,30]
[402003638,1768456263422,-500.0,0.00041095,30]
[402003639,1768456263431,-500.0,0.00041095,30]
[402003640,1768456263440,-500.0,0.00041095,30]
[402003641,1768456263455,-597.39358956,0.00041095,30]
[402003642,1768456263477,-500.0,0.00041095,30]
[402003643,1768456263496,-764.83,0.00041095,30]
[402003644,1768456263516,-938.14,0.00041095,30]
[402003645,1768456263532,-1414.71,0.00041095,30]
[402003646,1768456263551,-2387.71,0.00041095,30]
[402003647,1768456263571,-500.0,0.00041095,30]
[402003648,1768456263591,-546.58,0.00041095,30]
[402003649,1768456263610,-301.31298464,0.00041095,30]
[402003650,1768456263630,-500.0,0.00041095,30]
[402003651,1768456263648,-500.0,0.00041095,30]
[402003652,1768456263661,-624.36954361,0.00041095,30]
[402003653,1768456263680,-500.0,0.00041095,30]
[402003654,1768456263692,-500.0,0.00041095,30]
[402003655,1768456263710,-500.0,0.00041095,30]
[402003656,1768456263723,-725.6,0.00041095,30]
[402003657,1768456263739,-631.77829822,0.00041095,30]
[402003658,1768456263754,-500.0,0.00041095,30]
[402003659,1768456263771,-611.76094149,0.00041095,30]
[402003660,1768456263786,-571.36665103,0.00041095,30]
[402003661,1768456263802,-500.0,0.00041095,30]
[402003662,1768456263818,-500.0,0.00041095,30]
[402003663,1768456263834,-500.0,0.00041095,30]
[402003664,1768456263850,-500.0,0.00041095,30]
[402003665,1768456263866,-562.40568947,0.00041095,30]
[402003666,1768456263882,-226.18919049,0.00041095,30]
[402003667,1768456263897,-501.94436793,0.00041095,30]
[402003668,1768456263913,-500.0,0.00041095,30]
[402003669,1768456263928,-500.0,0.00041095,30]
[402003670,1768456263943,-507.5,0.00041095,30]
[402003671,1768456263958,-500.0,0.00041095,30]
[402003672,1768456263974,-500.0,0.00041095,30]
[402003673,1768456263990,-852.0,0.00041095,30]
[402003674,1768456264005,-785.39,0.00041095,30]
[402003675,1768456264020,-500.0,0.00041095,30]
[402003676,1768456264035,-500.0,0.00041095,30]
[402003677,1768456264051,-808.51,0.00041095,30]
[402003678,1768456264066,-500.0,0.00041095,30]
[402003679,1768456264087,-500.0,0.00041095,30]
[402003680,1768456264103,-1558.42,0.00041095,30]
[402003681,1768456264118,-500.0,0.00041095,30]
[402003682,1768456264133,-939.62,0.00041095,30]
[402003683,1768456264150,-500.0,0.00041095,30]
[402003684,1768456264169,-1133.45,0.00041095,30]
[402003685,1768456264185,-232.762662,0.00041095,120]
[402003686,1768456264201,-951.35,0.00041095,30]
[402003687,1768456264216,-1235.87,0.00041095,30]
[402003688,1768456264231,-500.0,0.00041095,30]
[402003689,1768456264246,-205.72580191,0.00041095,30]
[402003690,1768456264261,-500.0,0.00041095,30]
[402003691,1768456264277,-500.0,0.00041095,30]
[402003692,1768456264293,-500.0,0.00041095,30]
[402003693,1768456264309,-500.0,0.00041095,30]
[402003694,1768456264327,-151.0,0.00041095,120]
[402003695,1768456264344,-1344.98,0.00041095,30]
[402003696,1768456264360,-598.59872882,0.00041095,30]
[402003697,1768456264377,-500.0,0.00041095,30]
[402003698,1768456264394,-507.71,0.00041095,30]
[402003699,1768456264410,-500.0,0.00041095,30]
[402003700,1768456264427,-500.0,0.00041095,30]
[402003701,1768456264443,-1917.34,0.00041095,30]
[402003702,1768456264460,-929.04,0.00041095,30]
[402003703,1768456264476,-567.59,0.00041095,30]
[402003704,1768456264491,-151.0,0.00041095,120]
[402003705,1768456264507,-500.0,0.00041095,30]
[402003706,1768456264522,-598.21422363,0.00041095,30]
[402003707,1768456264539,-500.0,0.00041095,30]
[402003708,1768456264555,-151.0,0.00041095,120]
[402003709,1768456264571,-1078.65,0.00041095,30]
[402003710,1768456264587,-939.8,0.00041095,30]
[402003711,1768456264603,-603.19960045,0.00041095,30]
[402003712,1768456264619,-2051.49,0.00041095,30]
[402003713,1768456264635,-500.0,0.00041095,30]
[402003714,1768456264650,-500.0,0.00041095,30]
[402003715,1768456264666,-464.44017261,0.00041095,30]
[402003716,1768456264681,-633.5461058,0.00041095,30]
[402003717,1768456264697,-610.29808725,0.00041095,30]
[402003718,1768456264712,-660.83,0.00041095,30]
[402003719,1768456264728,-2161.17,0.00041095,30]
[402003720,1768456264743,-500.0,0.00041095,30]
[402003721,1768456264759,-630.21550945,0.00041095,30]
[402003722,1768456264774,-1316.39,0.00041095,30]
[402003723,1768456264790,-500.0,0.00041095,30]
[402003724,1768456264806,-2201.93,0.00041095,30]
[402003725,1768456264820,-500.0,0.00041095,30]
[402003726,1768456264836,-584.07,0.00041095,30]
[402003727,1768456264851,-531.28,0.00041095,30]
[402003728,1768456264867,-725.19,0.00041095,30]
[402003729,1768456264883,-500.0,0.00041095,30]
[402003730,1768456264898,-1119.17,0.00041095,30]
[402003731,1768456264914,-500.0,0.00041095,30]
[402003732,1768456264930,-778.77,0.00041095,30]
[402003733,1768456264945,-500.0,0.00041095,30]
[402003734,1768456264960,-530.62832017,0.00041095,30]
[402003735,1768456264976,-500.0,0.00041095,30]
[402003736,1768456264992,-1259.48,0.00041095,30]
[402003737,1768456265008,-2067.31,0.00041095,30]
[402003738,1768456265024,-520.64958894,0.00041095,30]
[402003739,1768456265039,-1407.11,0.00041095,30]
[402003740,1768456265055,-1797.11,0.00041095,30]
[402003741,1768456265274,-500.0,0.00041095,30]
[402003742,1768456265291,-500.0,0.00041095,30]
[402003743,1768456265301,-500.0,0.00041095,30]
[402003744,1768456265311,-500.0,0.00041095,30]
[402003745,1768456265320,-500.0,0.00041095,30]
[402003746,1768456265330,-1026.766114,0.00041095,120]
[402003747,1768456265339,-500.0,0.00041095,30]
[402003748,1768456265348,-1026.766114,0.00041095,120]
[402003749,1768456265358,-1026.766114,0.00041095,120]
[402003750,1768456265368,-1676.02,0.00041095,30]
[402003751,1768456265377,-1026.766117,0.00041095,120]
[402003752,1768456265387,-500.0,0.00041095,30]
[402003753,1768456265396,-2411.51,0.00041095,30]
[402003754,1768456265406,-582.86441105,0.00041095,30]
[402003755,1768456265415,-603.95915487,0.00041095,30]
[402003756,1768456265425,-465.17924132,0.00041095,30]
[402003757,1768456265435,-504.18722322,0.00041095,30]
[402003758,1768456265444,-500.0,0.00041095,30]
[402003759,1768456265454,-500.0,0.00041095,30]
[402003760,1768456265464,-500.0,0.00041095,30]
[402003761,1768456265473,-465.79689913,0.00041095,30]
[402003762,1768456265482,-677.02,0.00041095,30]
[402003763,1768456265492,-500.0,0.00041095,30]
[402003764,1768456265502,-504.35561927,0.00041095,30]
[402003765,1768456265511,-1265.91,0.00041095,30]
[402003766,1768456265521,-585.16486746,0.00041095,30]
[402003767,1768456265530,-151.0,0.00041095,120]
[402003768,1768456265540,-810.25,0.00041095,30]
[402003769,1768456265549,-151.0,0.00041095,120]
[402003770,1768456265558,-500.0,0.00041095,30]
[402003771,1768456265568,-500.0,0.00041095,30]
[402003772,1768456265577,-500.0,0.00041095,30]
[402003773,1768456265586,-151.0,0.00041095,120]
[402003774,1768456265596,-151.0,0.00041095,120]
[402003775,1768456265606,-500.0,0.00041095,30]
[402003776,1768456265616,-151.0,0.00041095,120]
[402003777,1768456265625,-151.0,0.00041095,120]
[402003778,1768456265635,-1957.85,0.00041095,30]
[402003779,1768456265644,-500.0,0.00041095,30]
[402003780,1768456265654,-525.59,0.00041095,30]
[402003781,1768456265663,-1210.89,0.00041095,30]
[402003782,1768456265672,-500.0,0.00041095,30]
[402003783,1768456265682,-506.93,0.00041095,30]
[402003784,1768456265691,-500.0,0.00041095,30]
[402003785,1768456265700,-2083.77,0.00041095,30]
[402003786,1768456265709,-925.59,0.00041095,30]
[402003787,1768456265719,-612.01328081,0.00041095,30]
[402003788,1768456265728,-500.0,0.00041095,30]
[402003789,1768456265737,-151.0,0.00041095,120]
[402003790,1768456265746,-500.0,0.00041095,30]
[402003791,1768456265756,-612.19,0.00041095,30]
[402003792,1768456265765,-500.0,0.00041095,30]
[402003793,1768456265774,-500.0,0.00041095,30]
[402003794,1768456265784,-1081.46,0.00041095,30]
[402003795,1768456265794,-500.0,0.00041095,30]
[402003796,1768456265803,-500.0,0.00041095,30]
[402003797,1768456265813,-626.9634374,0.00041095,30]
[402003798,1768456265822,-171.87688128,0.00041095,30]
[402003799,1768456265831,-508.7672518,0.00041095,30]
[402003800,1768456265841,-500.0,0.00041095,30]
[402003801,1768456265850,-500.0,0.00041095,30]
[402003802,1768456265862,-570.86,0.00041095,30]
[402003803,1768456265871,-500.0,0.00041095,30]
[402003804,1768456265880,-500.0,0.00041095,30]
[402003805,1768456265890,-527.16725553,0.00041095,30]